Cogmind - Beta 13 @@@ ROGUE MODE // 2024.05.21 @ 13:28:04 Player: mewcatx Result: Destroyed by P-70 Sage with Tesla Rifle Performance ------------- Evolutions (3) 1500 Regions Visited (13) 2600 Robots Destroyed (172) 860 Value Destroyed (5258) 5258 Prototype IDs (7) 140 Alien Tech Used (0) 0 Bonus (-439) -439 TOTAL SCORE: 9919 Bonus ------- High Alert Combat Kills 77 Follower Combat Kills 67 Friendly Fire -583 Cogmind --------- Core Integrity 0/700 Matter 134/300 Energy 100/100 System Corruption 5% Temperature Cool (0) Movement Core (50) Location -7/Lower Caves Parts ------- > --- POWER (1) -------- (None) > --- PROPULSION (3) --- (None) > --- UTILITY (7) ------ (None) > --- WEAPON (2) ------- (None) > --- INVENTORY (5) ---- Light Nuclear Core Heavy Ion Cannon Heavy Battle Rifle Heavy Rocket Launcher Peak State ------------ > --- POWER ------------ Light Nuclear Core > --- PROPULSION ------- Gravmag System Improved Airjet Cooled Aerolev Unit > --- UTILITY ---------- Improved Cooling System System Shield Improved Field Recycling Unit > --- WEAPON ----------- Molecular Deconstructor > --- INVENTORY -------- Light Nuclear Core Heavy Ion Cannon Heavy Battle Rifle Heavy Rocket Launcher Chainsword [Rating: 48] Favorites ----------- Power Deuterium Engine Engine Deuterium Engine Power Core Nuclear Core Propulsion Light Treads Treads Light Treads Wheel Armored Wheel Hover Unit Cooled Aerolev Unit Utility High-capacity Storage Unit Device Improved Heat Sink Storage High-capacity Storage Unit Processor Targeting Computer Hackware Hacking Suite Protection Light Armor Plating Weapon Advanced Beam Cannon Energy Gun Small Laser Energy Cannon Advanced Beam Cannon Ballistic Gun Shotgun Ballistic Cannon Flak Cannon Launcher Grenade Launcher Special Weapon Molecular Deconstructor Impact Weapon Maul Slashing Weapon Blade Saw Build | -11 -10 -10 -9 -9 -9 -8 -8 -8 -7 -7 -7 -7 -7 ------- Run | Yrd Mat Min Mat Min Exi Min Mat Sto Fac Was Fac Low Low Slots Evolved 6 | . . . 2 . . . 2 . 2 . . . . Power . | . . . . . . . . . . . . . . Propulsion 1 | . . . 1 . . . . . . . . . . Utility 5 | . . . 1 . . . 2 . 2 . . . . Weapon . | . . . . . . . . . . . . . . Parts Attached 201 | 6 8 11 40 3 2 4 39 21 14 2 25 1 25 Power 14 | 1 . 1 4 . . . 3 . 1 . 2 . 2 Engine 9 | 1 . 1 4 . . . 3 . . . . . . Core 5 | . . . . . . . . . 1 . 2 . 2 Reactor . | . . . . . . . . . . . . . . Propulsion 40 | 2 2 3 8 . . . 10 4 5 . 1 . 5 Treads 16 | 2 1 1 7 . . . 5 . . . . . . Leg . | . . . . . . . . . . . . . . Wheel 18 | . 1 2 1 . . . 5 3 4 . 1 . 1 Hover 6 | . . . . . . . . 1 1 . . . 4 Flight . | . . . . . . . . . . . . . . Utility 63 | 1 4 1 10 3 . . 12 5 4 1 12 1 9 Device 25 | . 1 . 5 1 . . 3 2 1 . 3 1 8 Storage 5 | 1 2 . 1 . . . . . . . 1 . . Processor 4 | . . . . . . . 2 . 1 . 1 . . Hackware 4 | . 1 . . . . . 1 . 1 . 1 . . Protection 25 | . . 1 4 2 . . 6 3 1 1 6 . 1 Artifact . | . . . . . . . . . . . . . . Weapon 84 | 2 2 6 18 . 2 4 14 12 4 1 10 . 9 Energy Gun 11 | 1 1 3 . . . . . . 2 . 3 . 1 Energy Cannon 18 | . . . 4 . 1 2 6 4 . . 1 . . Ballistic Gun 15 | 1 . 2 5 . 1 . 2 1 1 . . . 2 Ballistic Cannon 11 | . . . . . . . 3 4 1 . 3 . . Launcher 7 | . . 1 1 . . 2 1 . . 1 . . 1 Special Weapon 1 | . . . . . . . . . . . . . 1 Impact Weapon 7 | . . . 1 . . . 2 3 . . 1 . . Slashing Weapon 14 | . 1 . 7 . . . . . . . 2 . 4 Piercing Weapon . | . . . . . . . . . . . . . . Special Melee Weapon . | . . . . . . . . . . . . . . Unidentified Prototypes 7 | . . . 2 . . . 1 1 2 . . . 1 Parts Lost 63 | . 1 8 9 1 . . 7 6 3 2 9 . 17 Power 7 | . . 1 1 . . . . . 1 . 2 . 2 Propulsion 18 | . 1 2 2 . . . 3 2 2 . . . 6 Utility 26 | . . 1 5 1 . . 3 2 . 2 5 . 7 Weapon 12 | . . 4 1 . . . 1 2 . . 2 . 2 Highest Loss Streak 8 | . 1 4 3 1 . . 3 3 2 2 4 . 8 To Critical Strikes 1 | . . . 1 . . . . . . . . . . Average Slot Usage (%) 95 | . 97 97 98 100 79 100 98 92 90 89 97 100 82 Engine 8 | . 14 13 10 11 11 11 9 9 5 . . . . Core 1 | . . . . . . . . . 1 7 6 7 6 Treads 15 | . 25 22 23 33 33 33 15 . . . . . . Wheel 10 | . 1 4 9 . . . 10 25 22 23 23 23 14 Device 10 | . 8 . 10 11 11 11 13 10 8 7 18 15 13 Storage 10 | . 14 14 11 11 11 11 9 9 7 7 7 7 5 Processor 1 | . . . . . . . 1 6 . . . 7 5 Hackware 7 | . 3 11 . . . . 8 9 14 15 14 15 12 Protection 7 | . . 2 10 11 11 11 11 5 11 12 9 7 5 Energy Gun 4 | . 16 6 . . . . . . . . 6 7 5 Energy Cannon 3 | . . . 6 11 1 3 10 5 2 . . . . Ballistic Gun 5 | . 6 10 8 11 1 8 1 1 6 . . . 2 Ballistic Cannon 2 | . . . . . . . 4 8 4 7 6 7 2 Launcher 1 | . . 9 . . . 10 1 . . 6 . . . Slashing Weapon 1 | . 3 . 5 . . . . . . . . . 1 Naked Turns 13 | . . . . . . . . . . . . . 13 Heaviest Build 79 | 13 49 51 62 64 64 67 71 78 79 77 72 64 67 Greatest Support 63 | 40 40 40 63 63 63 63 63 36 36 36 36 34 34 Greatest Overweight (x) 7 | . 4 2 5 1 1 1 6 7 7 2 2 1 2 Average Overweight (x) 1 | . 1 1 . . . . 2 2 2 1 1 1 . Largest Inventory Capacity 20 | 8 20 20 20 20 20 20 20 20 20 20 20 20 20 Average Capacity 19 | 6 18 20 20 20 20 20 20 20 20 20 20 20 16 Most Carried 20 | 4 20 20 20 20 20 20 20 20 20 20 20 19 20 Average Carried 17 | 1 12 17 18 19 20 20 19 19 19 19 18 17 15 Final Capacity 20 | 8 20 20 20 20 20 20 20 20 20 20 20 20 5 Final Carried 20 | 4 20 14 20 20 20 20 20 20 20 19 17 19 4 Class Distribution -------------------- 53% | Mutant 25% | Scavenger-Mutant 21% | Hacker-Mutant Dominant Class ---------------- Mutant | -10/Materials Mutant | -10/Mines Mutant | -9/Materials Scavenger-Mutant | -9/Mines Mutant | -9/Exiles Mutant | -8/Mines Scavenger-Mutant | -8/Materials Scavenger-Mutant | -8/Storage Hacker-Mutant | -7/Factory Hacker-Mutant | -7/Waste Hacker-Mutant | -7/Factory Hacker-Mutant | -7/Lower Caves Hacker-Mutant | -7/Lower Caves Resources | -11 -10 -10 -9 -9 -9 -8 -8 -8 -7 -7 -7 -7 -7 ----------- Run | Yrd Mat Min Mat Min Exi Min Mat Sto Fac Was Fac Low Low Matter Collected 4379 | 260 316 221 752 102 . 186 856 541 428 . 468 139 110 Remotely . | . . . . . . . . . . . . . . Salvage Created 5664 | . 525 122 1049 82 . 279 1768 768 450 . 448 88 85 Parts 302 | . 34 5 68 6 . 13 82 37 24 . 31 . 2 Haulers Intercepted 2 | . 2 . . . . . . . . . . . . Recyclers Shooed 3 | . . . . . . 1 . 2 . . . . . Parts Field Recycled . | . . . . . . . . . . . . . . Retrieved Matter . | . . . . . . . . . . . . . . Parts Self-Destructed 2 | . . . . . . . . . . . . . 2 Prevented . | . . . . . . . . . . . . . . Kills | -11 -10 -10 -9 -9 -9 -8 -8 -8 -7 -7 -7 -7 -7 ------- Run | Yrd Mat Min Mat Min Exi Min Mat Sto Fac Was Fac Low Low Combat Hostiles Destroyed 134 | . 11 13 23 2 . 9 34 17 9 . 12 1 3 Melee 8 | . . . 6 . . . . 1 . . 1 . . Guns 43 | . 11 8 8 1 . . . 1 6 . 6 1 1 Cannons 59 | . . . 7 1 . 2 27 14 3 . 5 . . AOE 24 | . . 5 2 . . 7 7 1 . . . . 2 Classes Destroyed 15 | . 7 1 2 . . 2 2 . 1 . . . . Worker 5 | . . . . . . . 4 . . . 1 . . Builder 15 | . 1 . 5 . . . 4 2 . . 3 . . Tunneler 2 | . 1 . . . . . 1 . . . . . . Hauler 2 | . 2 . . . . . . . . . . . . Recycler 8 | . . . . . . 1 5 . 2 . . . . Operator 6 | . 1 . 3 . . . 2 . . . . . . Watcher 8 | . 1 . 1 . . . 3 2 . . 1 . . Swarmer 30 | . 6 2 4 . . 3 9 . 3 . 2 . 1 Grunt 62 | . 5 . 11 1 . 6 16 12 3 . 7 . 1 Brawler 3 | . . . 2 1 . . . . . . . . . Duelist 1 | . . . . . . 1 . . . . . . . Sentry 22 | . . . 6 . . . 8 4 1 . 2 . 1 Hunter 4 | . . . . . . . 1 1 . . 1 1 . Programmer 2 | . . . . . . . . . 2 . . . . Packrat 1 | . . . . . . . . . . . . 1 . Assembled 10 | . . 10 . . . . . . . . . . . Thug 1 | . . . . . . . . . . . 1 . . Best Kill Streak 13 | . 6 4 3 2 . 7 13 6 4 . 7 1 2 Combat Bots Only 10 | . 6 4 3 2 . 6 10 5 3 . 5 1 2 Max Kills in Single Turn 4 | . 2 2 2 1 . 3 4 2 1 . 2 1 2 Gunslinging . | . . . . . . . . . . . . . . Exploded 3 | . . 2 1 . . 2 3 1 . . . . 2 Melee 1 | . . . 1 . . . . 1 . . 1 . . Uniques/NPCs Destroyed 1 | . . 1 . . . . . . . . . . . YI-UF0 (-10/Mines) Combat | -11 -10 -10 -9 -9 -9 -8 -8 -8 -7 -7 -7 -7 -7 -------- Run | Yrd Mat Min Mat Min Exi Min Mat Sto Fac Was Fac Low Low Hostile Shots Fired 921 | . 70 64 141 5 . 19 135 104 52 2 134 4 191 Missed 279 | . 19 24 28 . . 5 41 30 20 . 41 1 70 Damage Taken 9027 | . 480 817 1422 57 . 234 1390 1136 436 84 1180 43 1748 Core 1435 | . 56 114 221 . . 58 133 143 21 . 146 . 543 Absorbed by Shields 179 | . . . 162 . . . . . . . . . 17 Redirected to Shielding 51 | . . . . . . . . . . . 51 . . Ignored by Resistances 59 | . . . . . . . . 16 2 . 41 . . Regen/Repaired (Parts) 97 | . 97 . . . . . . . . . . . . Core Remaining (%) 52 | 100 . 32 . . . 30 . 49 . . . . . Volleys Fired 403 | . 49 45 58 3 . 12 97 51 30 4 39 4 11 Largest 2 | . 2 2 2 2 . 2 2 2 2 2 2 2 2 Hottest 131 | . 80 70 91 91 . 101 131 119 91 77 128 124 124 Shots Fired 771 | . 97 88 103 7 . 22 189 99 56 8 76 8 18 Gun 355 | . 97 84 60 4 . 8 10 17 30 . 30 4 11 Cannon 387 | . . . 42 3 . 7 169 82 26 4 46 4 4 Launcher 28 | . . 4 1 . . 7 10 . . 4 . . 2 Special 1 | . . . . . . . . . . . . . 1 Kinetic 430 | . 47 46 60 4 . 8 70 83 50 4 46 4 8 Thermal 250 | . 50 15 42 3 . 7 80 12 . . 30 4 7 Explosive 28 | . . 4 1 . . 7 10 . . 4 . . 2 Electromagnetic 62 | . . 23 . . . . 29 4 6 . . . . Robot Hit Streak 13 | . 10 5 10 8 . 3 10 8 9 6 10 9 13 Robot Miss Streak 7 | . 2 5 4 2 . 4 7 7 6 2 6 3 3 Penetration Max 1 | . . . . . . . . . 1 . . . . Secondary Targets 3 | . . 3 . . . . . . . . . . . Max Gunslinging Chain 1 | . . 1 . . . . . . . . . . . Shots Hit Robots 530 | . 70 37 100 4 . 13 120 66 35 7 57 6 15 Core Hits 348 | . 24 22 46 3 . 19 83 51 33 2 47 7 11 Critical Kills 3 | . . . . 1 . . 1 1 . . . . . Critical Parts Destroyed 2 | . 2 . . . . . . . . . . . . Critical Strikes 21 | . 2 . 11 1 . . 2 4 . . 1 . . Meltdown 1 | . . . . . . . 1 . . . . . . Destroy 4 | . 2 . . 1 . . . 1 . . . . . Blast 4 | . . . . . . . 1 3 . . . . . Sever 12 | . . . 11 . . . . . . . 1 . . Melee Attacks 71 | . 6 . 43 . . . 6 8 . . 2 . 6 Impact 15 | . . . 1 . . . 6 8 . . . . . Slashing 56 | . 6 . 42 . . . . . . . 2 . 6 Piercing . | . . . . . . . . . . . . . . Sneak Attacks 4 | . . . 3 . . . 1 . . . . . . Combat Hostiles . | . . . . . . . . . . . . . . Follow-up Attacks 4 | . . . 4 . . . . . . . . . . Damage Inflicted 14084 | . 948 644 1991 62 . 1003 3788 1724 686 431 1901 156 750 Guns 3737 | . 884 448 788 21 . 27 78 211 319 . 632 109 220 Cannons 6011 | . . . 581 41 . 103 2454 1339 367 145 794 47 140 Explosions 3370 | . 64 196 143 . . 873 1127 86 . 286 403 . 192 Melee 960 | . . . 473 . . . 129 88 . . 72 . 198 Ramming 6 | . . . 6 . . . . . . . . . . Kinetic 5358 | . 428 218 788 21 . 27 890 1226 592 145 794 47 182 Thermal 3943 | . 520 74 651 41 . 103 1341 294 . . 632 109 178 Explosive 2909 | . . 196 73 . . 873 886 . . 286 403 . 192 Electromagnetic 908 | . . 156 . . . . 542 116 94 . . . . Impact 217 | . . . . . . . 129 88 . . . . . Slashing 743 | . . . 473 . . . . . . . 72 . 198 Piercing . | . . . . . . . . . . . . . . Highest Corruption 8 | . . 8 7 7 7 7 . . 1 1 1 1 4 Average Corruption 4 | . . 7 4 7 7 7 . . 1 1 1 1 1 Corruption Purged 1 | . . . . . . . . . . . . . 1 Corruption Blocked . | . . . . . . . . . . . . . . Effects 130 | . . 13 38 20 27 16 . . 1 2 12 1 . Message Errors 39 | . . 2 13 6 8 3 . . 1 1 4 1 . Matter Fused 28 | . . 4 5 6 6 4 . . . . 3 . . Heat Flow Errors 9 | . . . 2 . 3 2 . . . . 2 . . Energy Discharges 18 | . . 2 4 3 4 3 . . . . 2 . . Parts Rejected 2 | . . 1 1 . . . . . . . . . . Parts Fused 4 | . . . 1 . 2 . . . . . 1 . . Data Loss (minor) 11 | . . . 4 2 4 . . . . 1 . . . Data Loss (major) 6 | . . . 5 . . 1 . . . . . . . Misfires 8 | . . 3 1 1 . 3 . . . . . . . Alerts 3 | . . 1 . 2 . . . . . . . . . Weapon Failures 2 | . . . 2 . . . . . . . . . . Overload Shots . | . . . . . . . . . . . . . . Overflow Damage 361 | . 24 . 28 . . . 159 . . . 72 . 78 Projectiles 55 | . . . . . . . 55 . . . . . . Explosions 82 | . 24 . 12 . . . 12 . . . 34 . . Melee 224 | . . . 16 . . . 92 . . . 38 . 78 Knockbacks 59 | . . . . . . . 12 18 9 . 19 1 . Impact 1 | . . . . . . . 1 . . . . . . Kinetic 52 | . . . . . . . 10 16 8 . 17 1 . Secondary 6 | . . . . . . . 1 2 1 . 2 . . Self-Inflicted Damage 248 | . . . 88 . . . 85 . . . . . 75 Shots 6 | . . . 1 . . . 3 . . . . . 2 Rammed . | . . . . . . . . . . . . . . Targets Rammed 2 | . 1 . 1 . . . . . . . . . . Kicked . | . . . . . . . . . . . . . . Crushed 2 | . 1 . 1 . . . . . . . . . . Highest Temperature 696 | . 63 266 330 15 209 227 249 418 416 84 696 30 146 Average Temperature 88 | . 40 68 84 9 95 69 48 174 68 43 129 13 58 Received Heat Transfer 3125 | . 129 80 590 30 . 117 576 720 42 . 405 . 436 Effects 22 | . . . 3 . . . . 4 2 . 13 . . Shutdowns 4 | . . . . . . . . 2 . . 2 . . Energy Bleed 2 | . . . 2 . . . . . . . . . . Interference 4 | . . . . . . . . 1 . . 3 . . Matter Decay 1 | . . . . . . . . . . . 1 . . Short Circuit 3 | . . . 1 . . . . 1 . . 1 . . Damage (minor) 1 | . . . . . . . . . . . 1 . . Damage (major) 7 | . . . . . . . . . 2 . 5 . . Siege Activations . | . . . . . . . . . . . . . . Robots Corrupted . | . . . . . . . . . . . . . . Combat Hostiles . | . . . . . . . . . . . . . . Parts Fried 4 | . . . . . . . 3 1 . . . . . Impact Corruptions 4 | . . . . . . . 4 . . . . . . Robots Melted 1 | . . . . . . . 1 . . . . . . Combat Hostiles . | . . . . . . . . . . . . . . Parts Melted 9 | . 1 . . . . 2 3 1 . . 2 . . Heat Transferred 7201 | . 1100 222 1049 74 . 185 2150 446 . . 1350 250 375 Parts Sabotaged . | . . . . . . . . . . . . . . Parts Stolen . | . . . . . . . . . . . . . . Parts Stripped . | . . . . . . . . . . . . . . Power Chain Reactions 4 | . . . . . . . 3 1 . . . . . Alert | -11 -10 -10 -9 -9 -9 -8 -8 -8 -7 -7 -7 -7 -7 ------- Run | Yrd Mat Min Mat Min Exi Min Mat Sto Fac Was Fac Low Low Peak Influence 469 | . 161 50 248 86 . 315 469 467 186 30 327 . . Initial 162 | . . . . 46 . . 44 162 157 . 21 . . Average 117 | . 59 6 92 43 . 148 257 330 70 6 158 . . Maximum Alert Level 2 | . . . 1 . . 1 2 2 . . 1 . . Low Security (%) 77 | 100 100 100 91 100 . 91 29 11 100 100 61 . . Level 1 19 | . . . 8 . . 8 64 63 . . 38 . . Level 2 2 | . . . . . . . 6 25 . . . . . Level 3 . | . . . . . . . . . . . . . . Level 4 . | . . . . . . . . . . . . . . Level 5 . | . . . . . . . . . . . . . . High Security . | . . . . . . . . . . . . . . Max Security . | . . . . . . . . . . . . . . Squads Dispatched 27 | . 1 . 3 . . . 7 3 8 . 4 . 1 Investigation 4 | . . . . . . . 1 . 2 . 1 . . Extermination 2 | . . . . . . . . . 1 . 1 . . Reinforcement 13 | . 1 . 3 . . . 3 2 2 . 2 . . Assault 1 | . . . . . . . . . . . . . 1 Garrison 7 | . . . . . . . 3 1 3 . . . . Intercept . | . . . . . . . . . . . . . . Searches Triggered . | . . . . . . . . . . . . . . Construction Impeded 2 | . . . . . . . 1 1 . . . . . Haulers Reinforced . | . . . . . . . . . . . . . . Active Scanning Responses . | . . . . . . . . . . . . . . Cargo Convoy Interrupts . | . . . . . . . . . . . . . . Stealth | -11 -10 -10 -9 -9 -9 -8 -8 -8 -7 -7 -7 -7 -7 --------- Run | Yrd Mat Min Mat Min Exi Min Mat Sto Fac Was Fac Low Low Distress Signals 15 | . 2 1 2 . . . 5 3 1 . 1 . . Communications Jammed 12 | . . . . . . . . . . . 12 . . Distress Signals 12 | . . . . . . . . . . . 12 . . Times Spotted 280 | . 36 15 60 3 . 10 53 25 16 6 27 1 28 Peak Tracking Total 9 | . 6 4 6 2 . 4 5 5 3 6 6 1 9 Tactical Retreats 28 | . 2 1 9 . . . 5 3 1 . . . 7 Traps | -11 -10 -10 -9 -9 -9 -8 -8 -8 -7 -7 -7 -7 -7 ------- Run | Yrd Mat Min Mat Min Exi Min Mat Sto Fac Was Fac Low Low Traps Triggered 6 | . . . 1 . . . 1 . 2 . 2 . . Indirectly . | . . . . . . . . . . . . . . Trap Hack Attempts . | . . . . . . . . . . . . . . Triggered . | . . . . . . . . . . . . . . Disarmed . | . . . . . . . . . . . . . . Reprogrammed . | . . . . . . . . . . . . . . Reused . | . . . . . . . . . . . . . . Traps Extracted . | . . . . . . . . . . . . . . Installed . | . . . . . . . . . . . . . . Triggered . | . . . . . . . . . . . . . . Machines | -11 -10 -10 -9 -9 -9 -8 -8 -8 -7 -7 -7 -7 -7 ---------- Run | Yrd Mat Min Mat Min Exi Min Mat Sto Fac Was Fac Low Low Machines Disabled 21 | . 3 . 3 . . 2 6 2 1 . 4 . . Max in Single Turn 3 | . 3 . 2 . . 1 2 1 1 . 2 . . Garrison Access 5 | . . . . . . . 1 1 2 . 1 . . Machines Repaired . | . . . . . . . . . . . . . . Machines Dismantled . | . . . . . . . . . . . . . . Machines Sabotaged . | . . . . . . . . . . . . . . Overloaded Fab Kills . | . . . . . . . . . . . . . . Hacking | -11 -10 -10 -9 -9 -9 -8 -8 -8 -7 -7 -7 -7 -7 --------- Run | Yrd Mat Min Mat Min Exi Min Mat Sto Fac Was Fac Low Low Machines Accessed 51 | . 9 . 7 . 4 . 10 6 8 . 7 . . Terminals 32 | . 6 . 5 . . . 8 4 4 . 5 . . Fabricators 2 | . . . . . . . . . 2 . . . . Repair Stations 1 | . 1 . . . . . . . . . . . . Recycling Units 5 | . 2 . 1 . . . 1 1 . . . . . Scanalyzers 2 | . . . 1 . . . . . . . 1 . . Garrison Access 5 | . . . . . . . 1 1 2 . 1 . . Total Hacks 129 | . 23 . 24 . 4 . 35 10 15 . 18 . . Successful 64 | . 10 . 12 . 4 . 16 5 10 . 7 . . Failed 65 | . 13 . 12 . . . 19 5 5 . 11 . . Catastrophic 15 | . 2 . 3 . . . 5 1 3 . 1 . . Database Lockouts . | . . . . . . . . . . . . . . Manual 83 | . 15 . 18 . . . 34 2 3 . 10 . 1 Terminals 93 | . 16 . 18 . . . 31 8 8 . 12 . . Fabricators 5 | . . . . . . . . . 5 . . . . Repair Stations 2 | . 2 . . . . . . . . . . . . Recycling Units 10 | . 5 . 2 . . . 2 1 . . . . . Scanalyzers 7 | . . . 4 . . . . . . . 3 . . Garrison Access 8 | . . . . . . . 2 1 2 . 3 . . Terminal Hacks 33 | . 7 . 4 . 4 . 7 3 4 . 4 . . Record 7 | . 2 . . . 4 . . 1 . . . . . Part Schematic 1 | . . . . . . . 1 . . . . . . Robot Analysis 3 | . . . 1 . . . 1 . 1 . . . . Open Door 1 | . . . . . . . . 1 . . . . . Terminal Index 1 | . . . . . . . . . . . 1 . . Alert Level 6 | . 4 . 1 . . . . 1 . . . . . Unreport Threat 10 | . 1 . 2 . . . 4 . 2 . 1 . . Locate Traps 1 | . . . . . . . . . 1 . . . . Patrol Status 1 | . . . . . . . . . . . 1 . . Hauler Manifests 1 | . . . . . . . 1 . . . . . . Registered Components 1 | . . . . . . . . . . . 1 . . Fabricator Hacks 4 | . . . . . . . . . 4 . . . . Load Schematic 2 | . . . . . . . . . 2 . . . . Build 2 | . . . . . . . . . 2 . . . . Repair Station Hacks 2 | . 2 . . . . . . . . . . . . Scan Component 1 | . 1 . . . . . . . . . . . . Repair 1 | . 1 . . . . . . . . . . . . Recycling Unit Hacks 2 | . . . . . . . 1 1 . . . . . Report Inventory 1 | . . . . . . . 1 . . . . . . Retrieve Components 1 | . . . . . . . . 1 . . . . . Scanalyzer 6 | . . . 4 . . . . . . . 2 . . Insert Component 3 | . . . 2 . . . . . . . 1 . . Analyze 3 | . . . 2 . . . . . . . 1 . . Garrison Access Hacks 4 | . . . . . . . 1 1 2 . . . . Seal Access 4 | . . . . . . . 1 1 2 . . . . Unauthorized Hacks 13 | . 1 . 4 . . . 7 . . . 1 . . Terminals 9 | . . . 3 . . . 6 . . . . . . Botnet 8 | . . . 3 . . . 5 . . . . . . Operators 1 | . . . . . . . 1 . . . . . . Fabricators . | . . . . . . . . . . . . . . Repair Stations . | . . . . . . . . . . . . . . Recycling Units 3 | . 1 . 1 . . . 1 . . . . . . Mask 3 | . 1 . 1 . . . 1 . . . . . . Scanalyzers . | . . . . . . . . . . . . . . Garrison Access 1 | . . . . . . . . . . . 1 . . Jam 1 | . . . . . . . . . . . 1 . . Data Cores Recovered 1 | . . . . . . . 1 . . . . . . Used . | . . . . . . . . . . . . . . Hacking Detections 40 | . 8 . 7 . . . 9 4 6 . 6 . . Full Trace Events 3 | . . . . . . . 1 . 2 . . . . Feedback Events . | . . . . . . . . . . . . . . Feedback Blocked . | . . . . . . . . . . . . . . Robot Schematics Acquired . | . . . . . . . . . . . . . . Robots Built . | . . . . . . . . . . . . . . Authchips . | . . . . . . . . . . . . . . Time . | . . . . . . . . . . . . . . Total Robot Build Rating . | . . . . . . . . . . . . . . Part Schematics Acquired 4 | . . . 2 . . . 1 . . . 1 . . Parts Built 4 | . . . . . . . . . 4 . . . . Authchips . | . . . . . . . . . . . . . . Time 93 | . . . . . . . . . 93 . . . . Total Part Build Rating 8 | . . . . . . . . . 8 . . . . Parts Repaired 1 | . 1 . . . . . . . . . . . . Time 26 | . 26 . . . . . . . . . . . . Parts Recycled . | . . . . . . . . . . . . . . Recycled Matter . | . . . . . . . . . . . . . . Retrieved Matter . | . . . . . . . . . . . . . . Retrieved Components 9 | . . . . . . . . 9 . . . . . Parts Scanalyzed 3 | . . . 2 . . . . . . . 1 . . Part Schematics Acquired 3 | . . . 2 . . . . . . . 1 . . Parts Damaged . | . . . . . . . . . . . . . . Bothacking | -11 -10 -10 -9 -9 -9 -8 -8 -8 -7 -7 -7 -7 -7 ------------ Run | Yrd Mat Min Mat Min Exi Min Mat Sto Fac Was Fac Low Low Used RIF Installer . | . . . . . . . . . . . . . . Robots Hacked . | . . . . . . . . . . . . . . Non-combat . | . . . . . . . . . . . . . . Combat . | . . . . . . . . . . . . . . Robot Hacks Applied . | . . . . . . . . . . . . . . Relay Couplers Released . | . . . . . . . . . . . . . . Fabnet Peak Effective % . | . . . . . . . . . . . . . . Robots Rewired . | . . . . . . . . . . . . . . Allies Hacked . | . . . . . . . . . . . . . . Hacks Repelled . | . . . . . . . . . . . . . . Allies | -11 -10 -10 -9 -9 -9 -8 -8 -8 -7 -7 -7 -7 -7 -------- Run | Yrd Mat Min Mat Min Exi Min Mat Sto Fac Was Fac Low Low Total Allies 7 | . . . . 3 . . . . . . 3 . 1 Largest Group 3 | . . . . 3 2 1 1 . . . 3 . 1 Highest-Rated Group 127 | . . . . 40 24 16 16 . . . 93 . 127 Highest-Rated Ally 127 | . . . . 16 16 16 16 . . . 31 . 127 Total Orders . | . . . . . . . . . . . . . . Ally Attacks 40 | . . . . 18 . 12 6 . . . 4 . . Total Damage 389 | . . . . 164 . 99 39 . . . 87 . . Kills 5 | . . . . 2 . 2 . . . . 1 . . Allies Corrupted . | . . . . . . . . . . . . . . Allies Melted . | . . . . . . . . . . . . . . Intel | -11 -10 -10 -9 -9 -9 -8 -8 -8 -7 -7 -7 -7 -7 ------- Run | Yrd Mat Min Mat Min Exi Min Mat Sto Fac Was Fac Low Low Robot Analysis Total 3 | . . . 1 . . . 1 . 1 . . . . Derelict Logs Recovered 6 | . . 1 . 1 . . . . . . . 2 2 Drone Launches . | . . . . . . . . . . . . . . Drone Recoveries . | . . . . . . . . . . . . . . Exploration | -11 -10 -10 -9 -9 -9 -8 -8 -8 -7 -7 -7 -7 -7 ------------- Run | Yrd Mat Min Mat Min Exi Min Mat Sto Fac Was Fac Low Low Turns Passed 15700 | 98 2248 1879 2018 826 702 493 2230 866 1636 169 1188 336 1011 Spaces Moved 8709 | 67 909 477 1071 440 422 191 1142 520 1179 80 852 317 1042 Core 45 | 19 . . . . . . . . . . . . 26 Treads 2975 | 48 719 249 648 440 422 191 258 . . . . . . Legs . | . . . . . . . . . . . . . . Wheels 5319 | . 190 228 423 . . . 884 520 1179 80 852 317 646 Hover 370 | . . . . . . . . . . . . . 370 Flight . | . . . . . . . . . . . . . . Fastest Speed 45 | 50 140 110 101 160 160 160 101 101 116 105 101 101 45 Average Speed 140 | 128 206 177 136 181 165 239 152 112 124 113 104 101 86 Slowest Speed 240 | 160 240 240 240 240 240 240 240 185 185 120 120 101 120 Overloaded Moves 23 | . . . . . . . . . . . . . 23 Propulsion Burnouts . | . . . . . . . . . . . . . . Robots Hopped . | . . . . . . . . . . . . . . Cave-ins Triggered . | . . . . . . . . . . . . . . Exploration Rate (%) 58 | 4 98 74 77 71 70 53 66 52 27 62 24 58 82 Regions Visited 13 Branch Regions 7 Pre-discovered Areas 2 | . . 1 . . . . . . . . . . 1 Known Exits Taken 1 | . . . . . . . 1 . . . . . . Unknown Exits Taken 10 | 1 1 1 1 1 1 1 . 1 . . 1 1 . Scrap Searched 9 | . . . . 2 . 1 . . . . . 2 4 Spaces Dug 33 | . 5 . 1 . . . 4 4 . . . . 19 Terrain Destroyed 325 | . 5 29 37 . . 38 104 23 . 28 34 . 27 Melee 18 | . 5 . 1 . . . 4 4 . . . . 4 Projectile 26 | . . . . . . . 7 15 . . 4 . . AOE 281 | . . 29 36 . . 38 93 4 . 28 30 . 23 Terrain Rammed . | . . . . . . . . . . . . . . Walls Destroyed . | . . . . . . . . . . . . . . Machines Disabled . | . . . . . . . . . . . . . . Actions | -11 -10 -10 -9 -9 -9 -8 -8 -8 -7 -7 -7 -7 -7 --------- Run | Yrd Mat Min Mat Min Exi Min Mat Sto Fac Was Fac Low Low Total 11281 | 76 1170 1428 1436 466 425 207 1434 681 1298 149 1066 323 1122 Wait 1677 | . 179 892 178 11 . . 98 66 51 64 120 . 18 Move 8697 | 66 908 476 1070 439 421 190 1141 519 1179 79 851 316 1042 Hop . | . . . . . . . . . . . . . . Pick Up 121 | 4 17 4 28 5 . . 24 8 11 . 14 2 4 Fast Attach 57 | 6 1 . 10 1 2 1 12 6 6 . 9 . 3 Attach 69 | . 2 10 8 1 . . 11 4 5 1 10 . 17 Detach 9 | . . . 2 . . . . 1 1 . 1 . 4 Swap 75 | . 5 1 22 1 . 3 16 11 3 1 6 1 5 Drop 105 | . 2 . 21 5 2 1 29 7 12 . 14 . 12 Fire 403 | . 49 45 58 3 . 12 97 51 30 4 39 4 11 Melee 66 | . 6 . 38 . . . 6 8 . . 2 . 6 Ram . | . . . . . . . . . . . . . . Kick . | . . . . . . . . . . . . . . Crush 2 | . 1 . 1 . . . . . . . . . . Escape Stasis . | . . . . . . . . . . . . . . Rewire . | . . . . . . . . . . . . . . Trap . | . . . . . . . . . . . . . . Miscellaneous . | . . . . . . . . . . . . . . Route ------- -11/Scrapyard -10/Materials (discovered 5 exits: *Mat x3 / [*Min x2]) -10/Mines (discovered 2 exits: *Mat / [*Sub]) -9/Materials (discovered 2 exits: *Mat / [*Min]) -9/Mines (discovered 3 exits: *Mat x2 / *Exi) -9/Exiles -8/Mines -8/Materials (discovered 3 exits: *Fac x2 / *Sto) -8/Storage -7/Factory -7/Waste -7/Factory (discovered 2 exits: *Fac / [*Low]) -7/Lower Caves -7/Lower Caves History --------- Turn | Location | Event 5 | -11/Scrapyard | Discovered new exit (range 15) 99 | -11/Scrapyard | Entered Materials 319 | -10/Materials | Build established: Mutant 609 | -10/Materials | Discovered new exit (range 11) 1045 | -10/Materials | Discovered new exit (range 9) 1159 | -10/Materials | Discovered new exit (range 16) 1241 | -10/Materials | Repaired Assault Rifle 2159 | -10/Materials | Discovered new exit (range 9) 2229 | -10/Materials | Discovered new exit (range 15) 2347 | -10/Materials | Entered Mines 2418 | -10/Mines | Learned location of Storage (-8) 2429 | -10/Mines | Learned 2 Materials zone layouts 2599 | -10/Mines | Assembled infested the area 2604 | -10/Mines | Assisted by a Guerilla fighting off Assembled 3643 | -10/Mines | Discovered new exit (range 8) 3798 | -10/Mines | Destroyed YI-UF0 3849 | -10/Mines | Core integrity fell below 50% 3889 | -10/Mines | Lost 4 parts (1p1u2w) 4121 | -10/Mines | Discovered new exit (range 5) 4226 | -10/Mines | Entered Materials 4226 | -9/Materials | Evolved 2 slots: Propulsion x1, Utility x1 4842 | -9/Materials | Lost 3 parts (2n1u) 4998 | -9/Materials | Discovered new exit (range 10) 5233 | -9/Materials | Core integrity fell below 50% 5711 | -9/Materials | Discovered new exit (range 7) 5967 | -9/Materials | Build established: Scavenger-Mutant 6244 | -9/Materials | Entered Mines 6251 | -9/Mines | Received a Rocket Launcher from a helpful Derelict 6365 | -9/Mines | Found a hidden stash of uninstalled traps 6511 | -9/Mines | Discovered new exit (range 9) 6703 | -9/Mines | Assisted by bots powering up and referring to "LRC-V3" 6989 | -9/Mines | Discovered new exit (range 10) 7042 | -9/Mines | Deemed a non-threat by the Exiles lab entrance 7042 | -9/Mines | Discovered new exit (range 5) 7070 | -9/Mines | Entered Exiles 7070 | -9/Exiles | Found Exiles lab abandoned 7070 | -9/Exiles | Accompanied by 2 allies 7102 | -9/Exiles | Build established: Mutant 7741 | -9/Exiles | Discovered new exit (range 14) 7772 | -9/Exiles | Entered Mines 7772 | -8/Mines | Accompanied by 2 allies 8244 | -8/Mines | Discovered new exit (range 5) 8265 | -8/Mines | Entered Materials 8265 | -8/Materials | Accompanied by 1 ally 8265 | -8/Materials | Evolved 2 slots: Utility x2 8266 | -8/Materials | Identified exit to Storage 8491 | -8/Materials | Garrison activated, responded to threat 8549 | -8/Materials | Destroyed 10 combat bots 8583 | -8/Materials | Build established: Scavenger-Mutant 9050 | -8/Materials | Discovered new exit (range 16) 9132 | -8/Materials | Lost 3 parts (2u1w) 9724 | -8/Materials | Discovered new exit (range 16) 10060 | -8/Materials | Build established: Mutant 10495 | -8/Materials | Entered Storage 10915 | -8/Storage | Lost 3 parts (2n1u) 11071 | -8/Storage | Garrison activated, responded to threat 11084 | -8/Storage | Core integrity fell below 50% 11138 | -8/Storage | Lost 3 parts (1u2w) 11177 | -8/Storage | Build established: Scavenger-Mutant 11289 | -8/Storage | Discovered new exit (range 15) 11361 | -8/Storage | Entered Factory 11361 | -7/Factory | Evolved 2 slots: Utility x2 11490 | -7/Factory | Garrison activated, responded to threat 11705 | -7/Factory | Fabricated Arm. Wheel? 11715 | -7/Factory | Fabricated Arm. Wheel? 11750 | -7/Factory | Discovered new exit (range 11) 11777 | -7/Factory | Identified exit to Factory 12271 | -7/Factory | Build established: Hacker-Mutant 12997 | -7/Factory | Sucked down chute 12997 | -7/Factory | Entered Waste 13018 | -7/Waste | Spotted C-40 Crusher 13091 | -7/Waste | Spotted C-40 Crusher 13103 | -7/Waste | Spotted C-40 Crusher 13118 | -7/Waste | Spotted C-40 Crusher 13124 | -7/Waste | Crushed by Compactor (1 part destroyed) 13134 | -7/Waste | Spotted C-40 Crusher 13149 | -7/Waste | Spotted C-40 Crusher 13156 | -7/Waste | Discovered new exit (range 10) 13166 | -7/Waste | Entered Factory 13568 | -7/Factory | Discovered exit to Factory (range 12) 14030 | -7/Factory | Lost 3 parts (1p2u) 14189 | -7/Factory | Lost 4 parts (3u1w) 14221 | -7/Factory | Allied Derelicts emerged from ambush trap array 14333 | -7/Factory | Lost 3 allies 14349 | -7/Factory | Discovered new exit (range 7) 14354 | -7/Factory | Entered Lower Caves 14585 | -7/Lower Caves | Encountered a Warlord checkpoint 14646 | -7/Lower Caves | Learned Factory interactive machine intel 14668 | -7/Lower Caves | Discovered new exit (range 10) 14690 | -7/Lower Caves | Entered another Lower Caves area 14723 | -7/Lower Caves | Learned Factory stockpile data 15062 | -7/Lower Caves | Attracted the attention of an 0b10 checkpoint 15114 | -7/Lower Caves | Lost 4 parts (2n1u1w) 15470 | -7/Lower Caves | Core integrity fell below 50% 15488 | -7/Lower Caves | Attracted the attention of an 0b10 outpost 15518 | -7/Lower Caves | Lost 8 parts (1p2n4u1w) 15528 | -7/Lower Caves | Acquired the password to a Derelict Tinkerer's latest research 15532 | -7/Lower Caves | Found Prototype Special Weapon 15532 | -7/Lower Caves | Identified Molecular Deconstructor 15568 | -7/Lower Caves | Learned location of Zion (-6) 15664 | -7/Lower Caves | Caught by Unaware searching for contraband prototypes 15688 | -7/Lower Caves | Released all parts (4) 15689 | -7/Lower Caves | Core integrity fell below 20% 15696 | -7/Lower Caves | Caught by Unaware searching for contraband prototypes 15701 | -7/Lower Caves | Destroyed by P-70 Sage with Tesla Rifle Last Messages --------------- 15603_ I-36 Angel unfolds itself. 15608_ Critical hit (Burn: +37). 15609_ Gravmag System destroyed. 15609_ Lgt. Nuclear Core destroyed. 15663_ Imp. Airjet destroyed. 15664_ X-62 Marksman: "CONFIRMED SUSPICIOUS DERELICT. COMMENCE PROTOTYPE CONTRABAND SEARCH." 15667_ Penetrated by Slug. 15670_ Imp. Cooling System destroyed. 15684_ Penetrated by Slug. A strange signal echoes through the caves. 15688_ Released Chainsword. 15688_ Released Imp. Field Recycling Unit. 15688_ Released System Shield. 15688_ Released Cld. Aerolev Unit. 15688_ Penetrated by Slug. 15696_ P-70 Sage: "CONFIRMED SUSPICIOUS DERELICT. COMMENCE PROTOTYPE CONTRABAND SEARCH." Map ----- +----------------------------------------------------+ | ?????????????????????????????????????????????????? | | ?????????????????????????????????????????????????? | | ?????????????????????????????????????????####????? | | ???????????????????????????????????????###X"##???? | | ???????????????????????????????????????# ""#???? | | ???????????????????????????????????????### "#???? | | ???????????????????????????????????????# "#???? | | ??????????????????????????????????????#####""#???? | | ???????????????#####????????########??# ## #???? | | ???????###?##### #????????# ## #??# ##??? | | ??????## ### ## #???###?## #???# #??? | | ####### ## #??## #?# ###### #??? | | ## ## #??# #### ##?## | | ## ### #??# ## ###??# | | ##?# #?## ##### ##????# | | #??# #?# ###### #?????# | | #??# #?# ####?????# | | ## #??# #?# ###??????# | | ## ##??# #?# #### #??????# | | # ####???# #?# #??### #??????# | | # ##??????# #?# ##????# #??????# | | # #???????# ### ##?????# #????#### | | ## #??????# ###????### ##???# | | ### #?????# ##??????# ##?## | | ### #?????######### ##?????### ### | | ##### ##?????????????#@ ##?????# | | #?######??????????????# p #?????#### | | #?????????????????????# ##???????## # " | | #????????#####????????# ###??????# ##"%" | | #???????## #######??## ##?????# ## " | | #?????###" = ##??## ####### ## | | #?????# ## / ##??### ## ### | | ###?????# ## ! ##???## #### | | ?###???## ### ##???# ####| | | ?# #?## ##?# ##??## ### | | ?# ## ##### ### ##### ### #? | | ??# ## ####?# #### #? | | ??## #????## ### ## | | ##?## #?????# ##### # | | ##### ##????## ##???# #### | | ### ## ###???##### ##???## ###??### | | ## ###?????###??### ###?###### | | # ## ############ #???# | | ## ##???# | | ?# ## ## #?#### #### | | ?## ### #### ######## #"##### | | ??####?## #??########????## ### ## | | ????????## #?????????????## | | ?????????## #?????????????# | | ????????## ### ??????????## | +----------------------------------------------------+ Best States ------------- Heat Dissipation 61 Energy Generation 15 Energy Capacity 275 Matter Stores 400 Matter Capacity 400 Sight Range 16 Robot Scan Range 15 Terrain Scan Density 10 Jamming Range 12 Armor Coverage 750 Resistance: KI 20 Resistance: TH 10 Propulsion Shielding 66 Evasion (%) 56 Targeting Accuracy 5 Recoil Reduction 3 Offensive Hacking 20 Defensive Hacking 10 Item Schematics ----------------- Hacking Suite | -9/Materials | Scanalyzed Signal Interpreter | -9/Materials | Scanalyzed Arm. Wheel | -8/Materials | Hacked Cld. Aerolev Unit | -7/Factory | Scanalyzed Robot Schematics ------------------ None Fabricated ------------ Arm. Wheel | x2 | -7/Factory Arm. Wheel | x2 | -7/Factory Alien Tech Used ----------------- None Achievements -------------- Total Silence Challenges ------------ None Game ------ Seed MeleeHardlightWarhead Manual? 0 Play Time 02:05:32 Cumulative 32.9 hours Start 2024.05.18 @ 18:48:46 End 2024.05.21 @ 13:28:04 Sessions 13 Manual Loads 0 Difficulty Rogue Special Mode None Game No. 24 Rogue 23 Adventurer 1 Explorer 0 Win Type - Total 1 Types 1/0/0/0/0/0/0/0/0 Lore% 30 Gallery% 39 Achievement% 29 Wizard Run 0 Options --------- Layout 1 ASCII 0 Keyboard 0 Movement Mouse Keybinds 0 Fullscreen 1 Font 36/Proggy Map View 50x40 Zoom Use 0% Tactical HUD 1 Map Filters NONE Filters NONE Steam 0 RUN: ea1e5946-aec8-4f38-a15a-f4d81b8a35b2